bitfinex-derivatives/quotes_SOLF0:USTF0_20250830
["timestamp","ask_amount","ask_price","bid_price","bid_amount"]
[1756581777951,8.09,201.09,201.04,1.99456863]
[1756581778945,8.09,201.09,201.05,7.39]
[1756581779349,8.09,201.09,201.04,1.99456863]
[1756581779749,8.09,201.09,201.05,7.39]
[1756581779950,8.09,201.09,201.04,1.99456863]
[1756581780352,8.09,201.09,201.05,7.39]
[1756581780562,8.09,201.09,201.04,1.99456863]
[1756581780944,8.09,201.09,201.05,7.39]
[1756581781246,1.99456863,201.11,201.04,1.99456863]
[1756581781449,1.99456863,201.11,201.06,7.39]
[1756581781641,8.09,201.1,201.06,7.39]
[1756581781842,1.99456863,201.11,201.06,7.39]
[1756581782045,8.09,201.15,201.06,1.99456863]
[1756581782347,8.09,201.12,201.06,9.38456863]
[1756581783352,8.09,201.1,201.06,7.39]
[1756581783550,8.09,201.1,201.04,1.99456863]
[1756581784258,8.09,201.1,201.04,9.38456863]
[1756581786548,8.09,201.08,201.0,7.39]
[1756581786751,1.99456863,201.07,201.01,1.99456863]
[1756581787453,1.99456863,201.07,201.02,7.49]
[1756581787648,1.99456863,201.08,201.02,7.49]
[1756581787853,9.87456863,201.08,201.02,7.49]
[1756581788356,1.99456863,201.09,201.03,1.99456863]
[1756581788545,7.88,201.09,201.04,7.49]
[1756581788751,7.88,201.09,201.03,1.99456863]
[1756581788952,7.88,201.09,201.03,9.48456863]
[1756581790648,7.88,201.09,201.03,7.49]
[1756581790850,1.99456863,201.08,201.03,1.99456863]
[1756581791048,7.88,201.07,201.04,7.49]
[1756581792754,1.99456863,201.06,201.01,9.48456863]
[1756581793056,7.88,201.05,201.01,9.48456863]
[1756581793452,7.88,201.05,201.02,7.49]
[1756581794056,1.99456863,201.08,201.02,7.49]
[1756581796454,7.88,201.09,201.02,7.49]
[1756581796658,7.88,201.09,201.03,1.99456863]
[1756581796958,7.88,201.09,201.04,7.49]
[1756581797357,7.88,201.09,201.03,9.48456863]
[1756581798352,1.99456863,201.08,201.03,9.48456863]
[1756581798558,7.88,201.07,201.03,9.48456863]
[1756581798755,7.88,201.07,201.03,1.99456863]
[1756581799059,7.88,201.07,201.04,7.49]
[1756581799258,7.88,201.07,201.03,1.99456863]
[1756581799456,7.88,201.07,201.03,7.49]
[1756581800957,7.88,201.07,201.02,1.99456863]
[1756581801452,7.88,201.07,201.03,7.49]
[1756581801658,7.88,201.07,201.02,1.99456863]
[1756581801850,1.99456863,201.1,201.03,7.49]
[1756581802057,9.87456863,201.1,201.03,7.49]
[1756581802357,7.88,201.11,201.07,7.49]
[1756581803458,7.88,201.11,201.06,7.49]
[1756581804555,7.88,201.11,201.05,1.99456863]
[1756581805160,7.88,201.11,201.06,7.49]
[1756581805762,7.88,201.11,201.05,1.99456863]
[1756581806062,1.99456863,201.12,201.06,7.49]
[1756581806262,7.88,201.11,201.06,7.49]
[1756581806461,7.88,201.09,201.06,7.49]
[1756581809057,7.88,201.09,201.05,1.99456863]
[1756581809263,7.88,201.09,201.06,7.49]
[1756581809463,1.99456863,201.1,201.06,7.49]
[1756581809763,7.88,201.09,201.06,7.49]
[1756581810559,1.99456863,201.1,201.06,7.49]
[1756581810764,7.88,201.09,201.06,7.49]
[1756581811662,7.88,201.09,201.03,9.48456863]
[1756581811859,7.88,201.07,201.03,7.49]
[1756581812367,1.99456863,201.08,201.03,7.49]
[1756581812866,7.88,201.07,201.03,7.49]
[1756581813058,1.99456863,201.08,201.03,7.49]
[1756581813469,7.88,201.07,201.03,7.49]
[1756581814171,1.99456863,201.08,201.03,7.49]
[1756581814669,7.88,201.07,201.03,7.49]
[1756581814867,7.88,201.07,200.99,7.49]
[1756581815067,9.87456863,201.05,200.99,7.49]
[1756581817267,9.87456863,201.05,200.99,9.48456863]
[1756581818563,9.87456863,201.05,200.99,7.49]
[1756581819467,8.07,201.02,200.99,7.41]
[1756581820167,8.07,201.02,200.96,7.41]
[1756581820367,1.99456863,201.03,200.97,1.99456863]
[1756581820565,1.99456863,201.03,200.96,1.99456863]
[1756581820566,10.06456863,201.03,200.96,1.99456863]
[1756581820767,10.06456863,201.03,200.97,7.41]
[1756581822064,8.07,201.0,200.92,5.57480408]
[1756581822264,1.99456863,200.99,200.93,9.40456863]
[1756581822665,8.07,201.0,200.93,9.40456863]
[1756581822970,10.06456863,201.0,200.93,9.40456863]
[1756581823469,8.07,200.97,200.93,7.41]
[1756581824772,8.07,200.97,200.91,7.41]
[1756581825065,1.99456863,200.96,200.91,1.99456863]
[1756581825269,8.07,200.94,200.87,3.12072718]
[1756581825470,8.07,200.94,200.88,7.41]
[1756581831175,8.07,200.94,200.85,7.41]
[1756581832368,8.07,200.92,200.85,7.41]
[1756581832574,8.07,200.92,200.79,7.41]
[1756581832774,8.07,200.92,200.8,7.41]
[1756581833374,11.26,200.92,200.8,3.12072718]
[1756581833576,8.07,200.91,200.81,7.41]
[1756581833777,8.07,200.82,200.76,5.57480408]
[1756581833974,3.12072718,200.8,200.73,7.41]
[1756581834176,11.19072718,200.79,200.73,7.41]
[1756581834377,11.19072718,200.79,200.68,7.41]
[1756581834777,8.07,200.75,200.68,7.41]
[1756581835579,11.19072718,200.75,200.68,7.41]
[1756581837176,8.07,200.75,200.68,7.41]
[1756581841683,8.07,200.78,200.71,7.41]
[1756581842283,8.07,200.78,200.71,10.53072718]
[1756581843784,8.07,200.78,200.71,7.41]
[1756581845580,45.17,200.82,200.73,7.41]
[1756581845779,8.07,200.79,200.67,3.12072718]
[1756581846087,8.07,200.79,200.68,7.41]
[1756581847581,11.19072718,200.79,200.68,7.41]
[1756581848883,11.19072718,200.79,200.71,0.03456406]
[1756581849090,8.10460889,200.76,200.72,7.95]
[1756581850386,8.07,200.75,200.71,0.03456406]
[1756581851387,37.41533607,200.76,200.71,0.03456406]
[1756581851778,8.07,200.75,200.71,0.03456406]
[1756581852583,3.15533607,200.76,200.71,0.03456406]
[1756581852779,46.57533607,200.76,200.71,0.03456406]
[1756581853180,8.07,200.75,200.71,0.03456406]
[1756581853683,47.77533607,200.76,200.71,0.03456406]
[1756581853882,8.07,200.75,200.71,0.03456406]
[1756581854577,47.77533607,200.76,200.71,0.03456406]
[1756581854884,8.07,200.75,200.71,0.03456406]
[1756581855281,3.15533607,200.76,200.71,0.03456406]
[1756581855485,3.15533607,200.76,200.72,7.95]
[1756581855486,8.07,200.75,200.72,7.95]
[1756581856085,0.03460889,200.76,200.71,0.03456406]
[1756581856383,0.03460889,200.76,200.72,7.95]
[1756581856591,0.03460889,200.76,200.71,0.03456406]
[1756581856982,0.03460889,200.76,200.72,7.95]
[1756581857186,0.03460889,200.76,200.71,0.03456406]
[1756581857684,11.19072718,200.75,200.71,0.03456406]
[1756581858388,8.07,200.75,200.71,0.03456406]
[1756581858582,0.03460889,200.76,200.71,0.03456406]
[1756581858788,5.29460889,200.76,200.71,0.03456406]
[1756581858984,8.07,200.75,200.71,0.03456406]
[1756581859492,0.03460889,200.76,200.72,7.95]
[1756581859687,0.03460889,200.76,200.71,3.15529124]
[1756581859891,0.03460889,200.76,200.72,7.95]
[1756581860384,0.03460889,200.76,200.71,0.03456406]
[1756581860689,0.03460889,200.76,200.72,7.95]
[1756581861990,0.03460889,200.76,200.71,0.03456406]
[1756581862191,0.03460889,200.76,200.72,7.95]
[1756581862392,0.03460889,200.76,200.71,0.03456406]
[1756581862690,0.03460889,200.76,200.72,7.95]
[1756581862891,0.03460889,200.76,200.71,0.03456406]
[1756581863086,0.03460889,200.76,200.72,7.95]
[1756581863392,0.03460889,200.76,200.71,0.03456406]
[1756581863786,0.03460889,200.76,200.72,7.95]
[1756581864589,0.03460889,200.76,200.71,0.03456406]
[1756581864991,0.03460889,200.76,200.72,7.95]
[1756581865190,0.03460889,200.76,200.71,0.03456406]
[1756581865790,0.03460889,200.76,200.72,7.95]
[1756581866083,8.10460889,200.76,200.72,7.95]
[1756581866286,8.10460889,200.76,200.71,0.03456406]
[1756581866287,0.03460889,200.76,200.71,0.03456406]
[1756581866593,8.07,200.75,200.71,0.03456406]
[1756581867284,8.07,200.75,200.71,7.98456406]
[1756581871400,2.38358185,200.74,200.71,7.98456406]
[1756581871598,8.07,200.75,200.71,0.03456406]
[1756581871793,2.3835989,200.74,200.71,0.03456406]
[1756581871995,0.03460889,200.76,200.72,7.95]
[1756581872199,0.03460889,200.76,200.72,11.07072718]
[1756581872396,0.03460889,200.76,200.72,3.12072718]
[1756581872599,0.03460889,200.76,200.71,3.15529124]
[1756581873598,0.03460889,200.76,200.72,7.95]
[1756581873798,0.03460889,200.76,200.71,3.15529124]
[1756581873996,0.03460889,200.76,200.72,7.95]
[1756581875106,0.03460889,200.76,200.75,7.95]
[1756581877503,0.03460889,200.76,200.75,8.45]
[1756581878502,8.07,200.84,200.75,8.45]
[1756581878805,2.40082386,200.83,200.77,3.12072718]
[1756581879005,2.40082386,200.82,200.77,3.12072718]
[1756581879204,2.40082386,200.81,200.77,3.12072718]
[1756581879406,2.40082386,200.8,200.78,8.01]
[1756581879604,8.07,200.84,200.78,8.01]
[1756581879805,2.39988428,200.83,200.77,3.15718292]
[1756581880007,2.39988428,200.82,200.77,3.15718292]
[1756581880208,2.39988428,200.81,200.77,3.15718292]
[1756581880403,2.39988428,200.8,200.77,3.15718292]
[1756581880609,8.07,200.84,200.78,8.01]
[1756581880803,2.39910147,200.83,200.78,8.01]
[1756581881005,2.39910147,200.82,200.78,12.1940371]
[1756581881210,7.76,200.88,200.79,8.01]
[1756581881406,2.39831344,200.87,200.79,8.01]
[1756581881610,2.39831344,200.86,200.79,8.01]
[1756581881810,2.39831344,200.85,200.79,8.01]
[1756581882004,2.39831344,200.84,200.82,8.01]
[1756581882201,340.34797468,200.97,200.82,8.01]
[1756581882202,7.76,200.91,200.82,8.01]
[1756581882402,2.39716628,200.9,200.82,8.01]
[1756581882606,2.39716628,200.89,200.83,3.12072718]
[1756581882806,2.39716628,200.88,200.83,3.12072718]
[1756581883011,2.39716628,200.87,200.85,8.01]
[1756581883310,0.86651229,200.96,200.84,0.03367669]
[1756581883509,10.15610133,200.95,200.85,8.01]
[1756581883710,63.64651229,200.96,200.85,8.01]
[1756581883711,7.76,200.93,200.85,8.01]
[1756581883911,7.76,200.91,200.85,8.01]
[1756581884212,7.76,200.89,200.87,0.03359695]
[1756581884413,10.15610133,200.88,200.87,0.03359695]
[1756581884611,10.15610133,200.88,200.81,8.01]
[1756581884808,2.39610133,200.87,200.81,8.01]
[1756581885011,7.76,200.86,200.85,0.03277055]
[1756581885212,10.15420454,200.86,200.85,0.03277055]
[1756581885513,2.39420454,200.86,200.85,0.03277055]
[1756581886514,0.86651229,200.96,200.85,0.03277055]
[1756581886716,7.76,200.93,200.85,0.03277055]
[1756581887015,7.76,200.91,200.85,0.03277055]
[1756581887212,2.39252489,200.9,200.86,8.01]
[1756581887414,2.39252489,200.89,200.86,8.01]
[1756581887617,7.76,200.92,200.85,8.04277055]
[1756581887924,2.39222984,200.91,200.85,8.04277055]
[1756581888123,2.39222984,200.9,200.86,8.01]
[1756581888309,7.76,200.92,200.86,8.01]
[1756581888515,2.39117503,200.91,200.85,8.04277055]
[1756581888714,7.76,200.93,200.85,8.04277055]
[1756581888910,2.39119909,200.92,200.85,8.04277055]
[1756581889218,2.39119909,200.91,200.85,8.04277055]
[1756581889419,7.76,200.93,200.85,8.04277055]
[1756581889618,2.39009248,200.92,200.85,8.04277055]
[1756581889819,2.39009248,200.91,200.85,8.04277055]
[1756581890020,7.76,200.93,200.85,8.04277055]
[1756581890219,2.39009821,200.92,200.85,8.04277055]
[1756581890518,7.76,200.93,200.85,8.04277055]
[1756581890720,2.38912382,200.92,200.85,8.04277055]
[1756581890922,7.76,200.93,200.85,8.04277055]
[1756581891121,2.38912914,200.92,200.85,8.04277055]
[1756581891318,7.76,200.93,200.85,8.04277055]
[1756581900936,7.76,200.93,200.86,3.12072718]
[1756581901134,7.76,200.93,200.87,8.01]
[1756581902129,7.76,200.95,200.87,8.01]
[1756581902827,7.76,200.95,200.89,0.03325551]
[1756581903530,7.76,200.95,200.9,8.01]
[1756581903731,7.76,200.95,200.89,3.15398269]
[1756581904135,126.12,200.96,200.89,3.15398269]
[1756581904335,126.12,200.96,200.9,8.01]
[1756581905035,7.76,200.98,200.9,8.01]
[1756581909836,10.88072718,200.98,200.89,0.03325551]
[1756581910040,3.12072718,200.95,200.89,0.03325551]
[1756581910238,7.75,200.97,200.89,0.03325551]
[1756581910942,7.75,200.92,200.89,0.03325551]
[1756581911336,3.12072718,200.93,200.89,0.03325551]
[1756581911639,7.75,200.92,200.89,0.03325551]
[1756581911838,3.12072718,200.9,200.89,0.03325551]
[1756581912046,10.87072718,200.9,200.89,0.03325551]
[1756581919844,7.75,200.93,200.89,7.38325551]
[1756581920149,7.75,200.93,200.9,7.35]
[1756581920944,7.75,200.97,200.89,7.38325551]
[1756581926256,7.75,201.0,200.89,7.38325551]
[1756581926448,7.75,201.0,200.93,3.12072718]
[1756581926653,7.75,201.0,200.94,7.35]
[1756581926954,7.75,201.0,200.94,7.38461509]
[1756581935155,7.75,201.04,200.94,7.38461509]
[1756581935362,49.35072718,201.04,200.94,7.38461509]
[1756581936059,10.87072718,201.04,200.94,7.38461509]
[1756581936258,7.75,201.04,200.96,3.12072718]
[1756581936459,7.75,201.04,200.97,7.35]
[1756581937261,7.75,201.04,200.98,0.03251341]
[1756581939354,7.75,201.04,200.99,7.44]
[1756581939559,7.75,201.04,200.98,0.03251341]
[1756581939760,7.75,201.04,200.98,7.47251341]
[1756581941461,10.87072718,201.04,200.98,0.03251341]
[1756581945466,7.75,201.04,200.98,0.03251341]
[1756581945663,7.75,201.04,200.99,7.44]
[1756581945863,7.75,201.04,200.98,7.47251341]
[1756581946263,7.75,201.04,200.98,0.03251341]
[1756581953569,10.87072718,201.04,200.98,0.03251341]
[1756581955260,3.12072718,201.01,200.98,0.03251341]
[1756581955468,7.82,201.0,200.98,0.03251341]
[1756581955664,3.12072718,201.01,200.98,0.03251341]
[1756581956465,7.82,201.0,200.98,0.03251341]
[1756581956664,3.12072718,201.01,200.98,0.03251341]
[1756581957068,7.82,201.0,200.98,0.03251341]
[1756581957269,3.12072718,201.01,200.98,0.03251341]
[1756581957471,7.82,201.0,200.98,0.03251341]
[1756581957660,3.12072718,201.01,200.98,0.03251341]
[1756581958168,7.82,201.0,200.98,0.03251341]
[1756581958370,3.12072718,201.01,200.98,0.03251341]
[1756581958973,7.82,201.0,200.98,0.03251341]
[1756581959373,3.12072718,201.01,200.98,0.03251341]
[1756581959573,7.82,201.0,200.98,0.03251341]
[1756581959770,3.12072718,201.01,200.98,0.03251341]
[1756581959974,7.82,201.0,200.98,0.03251341]
[1756581960168,3.12072718,201.01,200.98,0.03251341]
[1756581960369,7.82,201.0,200.98,0.03251341]
[1756581962869,3.12072718,201.01,200.98,0.03251341]
[1756581963374,7.82,201.0,200.98,0.03251341]
[1756581963674,3.12072718,201.01,200.98,0.03251341]
[1756581963875,7.82,201.0,200.98,0.03251341]
[1756581964667,3.12072718,201.01,200.98,0.03251341]
[1756581965274,7.82,201.0,200.98,0.03251341]
[1756581969881,7.43,201.0,200.98,0.03251341]
[1756581970386,3.12072718,201.01,200.98,0.03251341]
[1756581971483,3.12072718,201.03,200.98,0.03251341]
[1756581971684,7.43,201.05,200.99,8.04]
[1756581975987,7.43,201.02,200.98,0.03251341]
[1756581977186,3.12072718,201.03,200.98,0.03251341]
[1756581977385,7.43,201.02,200.98,0.03251341]
[1756581978186,3.12072718,201.03,200.98,0.03251341]
[1756581978393,7.43,201.02,200.98,0.03251341]
[1756581979290,3.12072718,201.03,200.98,0.03251341]
[1756581979888,7.43,201.02,200.98,0.03251341]
[1756581980088,10.55072718,201.06,200.99,8.04]
[1756581980883,7.43,201.06,200.99,8.04]
[1756581984594,7.43,201.02,200.98,0.03251341]
[1756581984988,3.12072718,201.03,200.98,0.03251341]
[1756581985298,7.43,201.02,200.98,0.03251341]
[1756581985497,3.12072718,201.03,200.98,0.03251341]
[1756581985697,7.43,201.02,200.98,0.03251341]
[1756581986197,3.12072718,201.03,200.98,0.03251341]
[1756581986499,7.43,201.02,200.98,0.03251341]
[1756581986699,3.12072718,201.03,200.98,0.03251341]
[1756581986898,7.43,201.02,200.98,0.03251341]
[1756581987098,3.12072718,201.03,200.98,0.03251341]
[1756581987299,7.43,201.02,200.98,0.03251341]
[1756581987495,3.12072718,201.03,200.98,0.03251341]
[1756581987702,7.43,201.02,200.98,0.03251341]
[1756581987995,3.12072718,201.03,200.98,0.03251341]
[1756581988594,3.12072718,201.03,200.98,8.07251341]
[1756581988595,7.43,201.02,200.98,8.07251341]
[1756581989990,3.12072718,201.03,200.98,8.07251341]
[1756581990500,94.86,201.06,200.99,8.04]
[1756581990797,10.55072718,201.06,200.99,8.04]
[1756581991700,7.43,201.06,200.99,8.04]
[1756581991899,7.43,201.04,200.98,0.03251341]
[1756581992599,3.12072718,201.02,200.98,0.03251341]
[1756581992804,10.55072718,200.99,200.98,0.03251341]
[1756582000108,10.87072718,201.01,200.98,0.03251341]
[1756582000712,3.12072718,201.01,200.98,0.03251341]
[1756582000911,7.75,201.0,200.98,0.03251341]
[1756582001112,3.12072718,201.01,200.98,0.03251341]
[1756582001910,7.75,201.0,200.98,0.03251341]
[1756582002807,3.12072718,201.01,200.98,0.03251341]
[1756582003313,7.75,201.0,200.98,0.03251341]
[1756582003906,3.12072718,201.01,200.98,0.03251341]
[1756582004101,7.75,201.0,200.98,0.03251341]
[1756582004306,3.12072718,201.01,200.98,0.03251341]
[1756582004506,7.75,201.0,200.98,0.03251341]
[1756582005001,3.12072718,201.01,200.98,0.03251341]
[1756582005507,7.75,201.0,200.98,0.03251341]
[1756582005704,3.12072718,201.01,200.98,0.03251341]
[1756582006404,7.75,201.0,200.98,0.03251341]
[1756582006909,3.12072718,201.01,200.98,0.03251341]
[1756582007509,7.75,201.0,200.98,0.03251341]
[1756582007910,3.12072718,201.01,200.98,0.03251341]
[1756582008509,7.75,201.0,200.98,0.03251341]
[1756582009409,3.12072718,201.01,200.98,0.03251341]
[1756582010911,7.75,201.0,200.98,0.03251341]
[1756582011414,3.12072718,201.01,200.98,0.03251341]
[1756582011614,7.75,201.0,200.98,0.03251341]
[1756582012515,3.12072718,201.01,200.98,0.03251341]
[1756582013412,7.75,201.0,200.98,0.03251341]
[1756582013717,3.12072718,201.01,200.98,0.03251341]
[1756582014015,7.75,201.0,200.98,0.03251341]
[1756582014412,130.63,200.99,200.98,0.03251341]
[1756582018814,122.88,200.99,200.98,0.03251341]
[1756582019021,130.61,201.01,200.98,7.53251341]
[1756582020516,7.75,201.04,200.98,7.53251341]
[1756582020722,122.86,201.03,200.98,7.53251341]
[1756582021023,7.75,201.02,200.99,7.5]
[1756582023516,50.0,201.04,200.99,7.5]
[1756582023924,50.0,201.04,201.01,7.5]
[1756582024827,7.75,201.03,200.98,0.03251341]
[1756582025022,50.0,201.04,200.98,0.03251341]
[1756582025323,50.0,201.04,200.99,7.5]
[1756582025528,50.0,201.04,200.98,0.03251341]
[1756582025723,50.0,201.04,200.98,7.53251341]
[1756582025724,7.75,201.03,200.98,7.53251341]
[1756582026029,10.87072718,201.03,200.98,7.53251341]
[1756582026225,3.12072718,201.03,200.98,7.53251341]
[1756582026528,3.12072718,201.03,200.98,0.03251341]
[1756582027129,7.75,201.02,200.98,0.03251341]
[1756582027329,3.12072718,201.03,200.98,0.03251341]
[1756582027533,7.43,201.02,200.98,0.03251341]
[1756582027827,7.43,201.02,200.98,7.73251341]
[1756582028331,7.43,201.02,200.98,0.03251341]
[1756582028830,3.12072718,201.03,200.98,0.03251341]
[1756582029428,7.43,201.02,200.98,0.03251341]
[1756582029629,3.12072718,201.03,200.98,0.03251341]
[1756582029830,7.43,201.02,200.98,0.03251341]
[1756582030133,122.82,201.02,200.99,7.7]
[1756582030333,130.25,201.02,200.99,7.7]
[1756582030535,7.43,201.01,200.98,0.03251341]
[1756582031326,7.43,201.01,200.98,7.73251341]
[1756582031931,122.82,201.02,200.98,0.03251341]
[1756582032433,7.43,201.01,200.98,0.03251341]
[1756582032624,122.82,201.02,200.98,0.03251341]
[1756582033028,7.43,201.01,200.98,0.03251341]
[1756582033426,122.82,201.02,200.98,0.03251341]
[1756582033631,7.43,200.99,200.98,0.03251341]
[1756582037741,7.43,201.02,200.99,7.7]
[1756582037944,130.23,201.02,200.99,7.7]
[1756582038244,172.8,201.04,200.98,0.03251341]
[1756582038439,172.8,201.04,200.99,7.7]
[1756582038638,172.8,201.04,200.98,0.03251341]
[1756582038838,172.8,201.04,200.99,7.7]
[1756582039036,172.8,201.04,200.98,0.03251341]
[1756582039340,172.8,201.04,200.99,7.7]
[1756582039341,50.0,201.04,200.99,7.7]
[1756582039539,50.0,201.04,201.0,3.12072718]
[1756582039738,50.0,201.04,201.01,7.7]
[1756582039939,50.0,201.04,201.0,3.12072718]
[1756582040144,50.0,201.04,200.98,0.03251341]
[1756582040339,50.0,201.04,201.0,3.12072718]
[1756582040542,50.0,201.04,201.01,7.7]
[1756582043543,50.0,201.04,201.0,3.12072718]
[1756582043841,50.0,201.04,201.01,7.7]
[1756582044838,50.0,201.04,201.0,3.12072718]
[1756582045139,50.0,201.04,201.01,7.7]
[1756582045642,50.0,201.04,201.03,10.82072718]
[1756582046642,50.0,201.04,201.03,11.32072718]
[1756582046941,122.76,201.11,201.04,7.7]
[1756582047143,122.76,201.11,201.06,3.12072718]
[1756582047344,130.19,201.11,201.07,7.7]
[1756582048544,122.74,201.12,201.07,7.7]
[1756582048747,7.43,201.11,201.07,7.7]
[1756582049145,122.74,201.12,201.07,7.7]
[1756582049442,7.43,201.11,201.07,7.73813396]
[1756582049646,122.74,201.12,201.07,7.73813396]
[1756582049838,7.43,201.11,201.07,7.73813396]
[1756582050042,122.74,201.12,201.07,7.73813396]
[1756582050443,7.43,201.11,201.07,7.73813396]
[1756582050850,122.74,201.12,201.07,7.73813396]
[1756582051448,7.43,201.11,201.07,7.73813396]
[1756582051656,122.74,201.12,201.07,7.73813396]
[1756582052048,7.43,201.11,201.07,7.73813396]
[1756582052249,122.74,201.12,201.07,7.73813396]
[1756582052652,7.43,201.11,201.07,7.73813396]
[1756582054552,122.74,201.12,201.07,7.73813396]
[1756582054748,7.43,201.11,201.07,7.73813396]
[1756582055054,122.74,201.12,201.07,7.73813396]
[1756582055553,7.43,201.11,201.07,7.73813396]
[1756582057351,8.06,201.17,201.08,7.49]
[1756582057551,8.06,201.17,201.09,3.12072718]
[1756582058154,8.06,201.17,201.11,0.03600785]
[1756582059654,8.06,201.2,201.13,7.49]
[1756582064261,8.06,201.2,201.15,3.12072718]
[1756582064462,8.06,201.21,201.15,3.12072718]
[1756582064661,8.06,201.21,201.14,7.49]
[1756582065064,8.06,201.21,201.16,0.03620698]
[1756582065453,457.0,201.22,201.16,0.03620698]
[1756582065654,8.06,201.21,201.16,0.03620698]
[1756582065853,457.0,201.22,201.16,0.03620698]
[1756582066263,8.06,201.21,201.16,0.03620698]
[1756582066562,457.0,201.22,201.16,0.03620698]
[1756582066965,8.06,201.21,201.16,0.03620698]
[1756582067168,457.0,201.22,201.16,0.03620698]
[1756582067466,8.06,201.21,201.16,0.03620698]
[1756582068669,457.0,201.22,201.16,0.03620698]
[1756582069371,334.36,201.22,201.16,0.03620698]
[1756582069568,456.96,201.22,201.16,0.03620698]
[1756582069765,334.36,201.22,201.16,0.03620698]
[1756582069970,456.96,201.22,201.16,0.03620698]
[1756582070269,8.06,201.21,201.16,0.03620698]
[1756582070669,456.96,201.22,201.16,0.03620698]
[1756582070873,8.06,201.21,201.16,0.03620698]
[1756582071269,456.96,201.22,201.16,0.03620698]
[1756582071668,8.06,201.21,201.16,0.03620698]
[1756582071873,456.96,201.22,201.16,0.03620698]
[1756582072275,8.06,201.21,201.16,0.03620698]
[1756582072572,456.96,201.22,201.16,0.03620698]
[1756582073173,8.06,201.21,201.16,0.03620698]
[1756582073772,456.96,201.22,201.16,0.03620698]
[1756582074978,8.06,201.21,201.16,0.03620698]
[1756582075170,456.96,201.22,201.16,0.03620698]
[1756582075380,8.06,201.21,201.16,0.03620698]
[1756582076071,456.96,201.22,201.16,0.03620698]
[1756582076270,8.06,201.21,201.16,0.03620698]
[1756582076974,456.96,201.22,201.16,0.03620698]
[1756582077274,8.06,201.21,201.16,0.03620698]
[1756582077676,456.96,201.22,201.16,0.03620698]
[1756582077877,8.06,201.21,201.16,0.03620698]
[1756582078076,8.06,201.22,201.16,7.52620698]
[1756582081178,8.06,201.22,201.16,0.03620698]
[1756582081383,11.18072718,201.22,201.16,0.03620698]
[1756582081772,3.12072718,201.19,201.16,0.03620698]
[1756582081977,61.02,201.18,201.07,7.49]
[1756582082180,8.06,201.15,201.07,7.49]
[1756582084177,5.56797468,201.27,201.1,3.12072718]
[1756582084384,14.96,201.33,201.11,7.49]
[1756582084385,11.18072718,201.22,201.11,7.49]
[1756582104299,16.74870186,201.22,201.11,7.49]
[1756582105097,11.18072718,201.22,201.11,7.49]
[1756582105798,8.06,201.22,201.13,3.12072718]
[1756582106097,8.06,201.22,201.14,7.63]
[1756582108100,8.06,201.22,201.16,3.12072718]
[1756582108498,8.06,201.22,201.17,7.63]
[1756582108800,8.06,201.22,201.16,3.12072718]
[1756582109001,76.58870186,201.27,201.16,10.75072718]
[1756582109197,13.32797468,201.26,201.16,10.75072718]
[1756582109400,7.76,201.25,201.16,10.75072718]
[1756582110201,5.56797468,201.26,201.16,10.75072718]
[1756582110398,7.76,201.25,201.16,10.75072718]
[1756582110603,5.56797468,201.26,201.16,10.75072718]
[1756582110799,7.76,201.25,201.16,10.75072718]
[1756582111300,3.12072718,201.23,201.13,7.63]
[1756582111596,7.76,201.22,201.13,7.63]
[1756582115502,7.76,201.19,201.09,7.63]
[1756582115696,7.76,201.16,201.09,7.63]
[1756582126207,7.76,201.16,201.1,3.12072718]
[1756582126406,7.41,201.2,201.11,7.61]